Cogmind - Beta 13 *** ADVENTURER MODE // 2024.03.31 @ 13:20:19 Player: jjjdanny Result: Self-destructed Performance ------------- Evolutions (3) 1500 Regions Visited (6) 1200 Robots Destroyed (27) 135 Value Destroyed (639) 639 Prototype IDs (2) 40 Alien Tech Used (0) 0 Bonus (63) 63 TOTAL SCORE: 3577 Bonus ------- Follower Combat Kills 63 Cogmind --------- Core Integrity 700/700 Matter 290/300 Energy 410/410 System Corruption 0% Temperature Cool (0) Movement Walking (187) Ox1 Location -7/Factory Parts ------- > --- POWER (2) -------- Light Nuclear Core > --- PROPULSION (4) --- Aluminum Leg Aluminum Leg Carbon-fiber Leg VSS Leg > --- UTILITY (5) ------ Heat Sink Advanced Heat Sink High-capacity Storage Unit High-capacity Battery Experimental Sensor Array > --- WEAPON (2) ------- Heavy Particle Gun Heavy Laser > --- INVENTORY (20) --- Aluminum Leg Aluminum Leg High-capacity Storage Unit Trap Scanner Beam Rifle Beam Rifle Beam Rifle Beam Rifle Heavy Laser Heavy Laser Heavy Laser Gatling Laser Gatling Laser Gatling Laser Gatling Laser Ion Cannon Peak State ------------ > --- POWER ------------ Light Nuclear Core > --- PROPULSION ------- Aluminum Leg Aluminum Leg Carbon-fiber Leg VSS Leg > --- UTILITY ---------- Heat Sink Advanced Heat Sink High-capacity Storage Unit High-capacity Battery Experimental Sensor Array > --- WEAPON ----------- Heavy Particle Gun Heavy Laser > --- INVENTORY -------- Aluminum Leg Aluminum Leg High-capacity Storage Unit Trap Scanner Beam Rifle Beam Rifle Beam Rifle Beam Rifle Heavy Laser Heavy Laser Heavy Laser Gatling Laser Gatling Laser Gatling Laser Gatling Laser Ion Cannon [Rating: 40] Favorites ----------- Power Light Nuclear Core Engine Light Ion Engine Power Core Light Nuclear Core Propulsion Aluminum Leg Leg Aluminum Leg Utility Visual Processing Unit Device Heat Sink Storage High-capacity Storage Unit Processor Visual Processing Unit Weapon Medium Laser Energy Gun Medium Laser Build | -11 -10 -10 -10 -9 -8 -7 ------- Run | Yrd Mat Min Exi Min Mat Fac Slots Evolved 6 | . . . . . 4 2 Power 1 | . . . . . . 1 Propulsion 2 | . . . . . 2 . Utility 3 | . . . . . 2 1 Weapon . | . . . . . . . Parts Attached 27 | 6 1 2 1 . 16 1 Power 5 | 1 . 1 . . 3 . Engine 1 | 1 . . . . . . Core 4 | . . 1 . . 3 . Reactor . | . . . . . . . Propulsion 9 | 2 . . . . 7 . Treads . | . . . . . . . Leg 9 | 2 . . . . 7 . Wheel . | . . . . . . . Hover . | . . . . . . . Flight . | . . . . . . . Utility 7 | 1 1 . 1 . 3 1 Device 3 | . . . . . 3 . Storage 3 | 1 . . 1 . . 1 Processor 1 | . 1 . . . . . Hackware . | . . . . . . . Protection . | . . . . . . . Artifact . | . . . . . . . Weapon 6 | 2 . 1 . . 3 . Energy Gun 6 | 2 . 1 . . 3 . Energy Cannon . | . . . . . . . Ballistic Gun . | . . . . . . . Ballistic Cannon . | . . . . . . . Launcher . | . . . . . . . Special Weapon . | . . . . . . . Impact Weapon . | . . . . . . . Slashing Weapon . | . . . . . . . Piercing Weapon . | . . . . . . . Special Melee Weapon . | . . . . . . . Unidentified Prototypes 2 | . . . . . 2 . Parts Lost 2 | . . . . . 2 . Power 1 | . . . . . 1 . Propulsion 1 | . . . . . 1 . Utility . | . . . . . . . Weapon . | . . . . . . . Highest Loss Streak 2 | . . . . . 2 . To Critical Strikes . | . . . . . . . Average Slot Usage (%) 99 | . 91 100 100 100 99 92 Core 12 | . . 13 14 14 8 7 Leg 29 | . 28 28 28 28 35 30 Device 4 | . . . . . 20 23 Storage 12 | . 14 14 14 14 9 15 Processor 11 | . 5 14 14 14 6 . Energy Gun 25 | . 28 28 28 28 18 15 Naked Turns . | . . . . . . . Heaviest Build 59 | 12 12 15 50 50 55 59 Greatest Support 47 | 20 20 20 20 20 47 47 Greatest Overweight (x) 2 | 2 . . 2 2 1 1 Average Overweight (x) 1 | . . . 1 2 1 1 Largest Inventory Capacity 20 | 8 8 8 20 20 20 20 Average Capacity 17 | 7 8 8 18 20 20 20 Most Carried 20 | 2 5 8 9 10 20 16 Average Carried 9 | . 3 6 8 9 13 16 Final Capacity 20 | 8 8 8 20 20 20 20 Final Carried 17 | 1 4 7 9 10 17 16 Class Distribution -------------------- 76% | Mutant 23% | Scavenger-Mutant Dominant Class ---------------- Mutant | -10/Materials Mutant | -10/Mines Mutant | -10/Exiles Mutant | -9/Mines Scavenger-Mutant | -8/Materials Scavenger-Mutant | -7/Factory Resources | -11 -10 -10 -10 -9 -8 -7 ----------- Run | Yrd Mat Min Exi Min Mat Fac Matter Collected 450 | 257 13 20 . 10 150 . Remotely . | . . . . . . . Salvage Created 1063 | 81 55 124 . 213 590 . Parts 63 | 2 10 12 . 10 29 . Haulers Intercepted . | . . . . . . . Recyclers Shooed 1 | . . . . 1 . . Parts Field Recycled . | . . . . . . . Retrieved Matter . | . . . . . . . Parts Self-Destructed . | . . . . . . . Prevented . | . . . . . . . Kills | -11 -10 -10 -10 -9 -8 -7 ------- Run | Yrd Mat Min Exi Min Mat Fac Combat Hostiles Destroyed 18 | . . 5 . 4 9 . Guns 17 | . . 5 . 4 8 . Classes Destroyed 6 | 1 2 2 . . 1 . Builder 1 | . 1 . . . . . Recycler 5 | 1 . . . 2 2 . Watcher 3 | . 1 . . . 2 . Swarmer 8 | . . 3 . 3 2 . Grunt 9 | . . 2 . 1 6 . Sentry 1 | . . . . . 1 . Best Kill Streak 3 | 1 2 3 . 3 3 . Combat Bots Only 3 | . . 3 . 3 3 . Max Kills in Single Turn 1 | 1 1 1 . 1 1 . Gunslinging . | . . . . . . . Exploded . | . . . . . . . Melee . | . . . . . . . Uniques/NPCs Destroyed . | . . . . . . . Combat | -11 -10 -10 -10 -9 -8 -7 -------- Run | Yrd Mat Min Exi Min Mat Fac Hostile Shots Fired 108 | . . 16 . 28 56 8 Missed 27 | . . 4 . 5 15 3 Damage Taken 777 | . . 95 . 141 481 60 Core 126 | . . 25 . 18 83 . Absorbed by Shields . | . . . . . . . Ignored by Resistances 235 | . . 30 . 47 140 18 Core Remaining (%) 88 | 100 . . . 82 84 . Volleys Fired 69 | 3 3 8 . 16 39 . Largest 2 | 2 2 2 . 2 2 . Hottest 124 | 90 90 115 . 115 124 . Shots Fired 138 | 6 6 16 . 32 78 . Gun 138 | 6 6 16 . 32 78 . Cannon . | . . . . . . . Launcher . | . . . . . . . Special . | . . . . . . . Kinetic . | . . . . . . . Thermal 128 | 3 3 12 . 32 78 . Explosive . | . . . . . . . Electromagnetic 10 | 3 3 4 . . . . Robot Hit Streak 16 | 5 4 5 . 8 16 . Robot Miss Streak 4 | . 1 1 . 4 3 . Penetration Max . | . . . . . . . Secondary Targets 4 | . . 1 . 1 2 . Max Gunslinging Chain 1 | . . 1 . 1 1 . Shots Hit Robots 94 | 5 4 11 . 21 53 . Core Hits 44 | 2 2 8 . 7 25 . Critical Kills . | . . . . . . . Critical Parts Destroyed . | . . . . . . . Critical Strikes 6 | . . 1 . 2 3 . Burn 6 | . . 1 . 2 3 . Melee Attacks . | . . . . . . . Impact . | . . . . . . . Slashing . | . . . . . . . Piercing . | . . . . . . . Sneak Attacks . | . . . . . . . Combat Hostiles . | . . . . . . . Follow-up Attacks . | . . . . . . . Damage Inflicted 1457 | 63 46 174 . 293 881 . Guns 1457 | 63 46 174 . 293 881 . Cannons . | . . . . . . . Explosions . | . . . . . . . Melee . | . . . . . . . Ramming . | . . . . . . . Kinetic . | . . . . . . . Thermal 1349 | 25 13 137 . 293 881 . Explosive . | . . . . . . . Electromagnetic 108 | 38 33 37 . . . . Impact . | . . . . . . . Slashing . | . . . . . . . Piercing . | . . . . . . . Highest Corruption . | . . . . . . . Average Corruption . | . . . . . . . Corruption Purged . | . . . . . . . Corruption Blocked . | . . . . . . . Overload Shots . | . . . . . . . Overflow Damage . | . . . . . . . Projectiles . | . . . . . . . Explosions . | . . . . . . . Melee . | . . . . . . . Knockbacks . | . . . . . . . Impact . | . . . . . . . Kinetic . | . . . . . . . Secondary . | . . . . . . . Self-Inflicted Damage . | . . . . . . . Shots . | . . . . . . . Rammed . | . . . . . . . Targets Rammed . | . . . . . . . Kicked . | . . . . . . . Crushed . | . . . . . . . Highest Temperature 533 | 45 60 240 . 533 499 . Average Temperature 138 | 24 27 108 . 182 135 . Received Heat Transfer 456 | . . 42 . 18 351 45 Effects 5 | . . . . 3 2 . Shutdowns 2 | . . . . 1 1 . Interference 2 | . . . . 2 . . Short Circuit 1 | . . . . . 1 . Siege Activations . | . . . . . . . Robots Corrupted . | . . . . . . . Combat Hostiles . | . . . . . . . Parts Fried . | . . . . . . . Impact Corruptions . | . . . . . . . Robots Melted 1 | . . . . . 1 . Combat Hostiles 1 | . . . . . 1 . Parts Melted 10 | . . . . 4 6 . Heat Transferred 3737 | 74 37 444 . 925 2257 . Parts Sabotaged . | . . . . . . . Parts Stolen . | . . . . . . . Parts Stripped . | . . . . . . . Power Chain Reactions . | . . . . . . . Alert | -11 -10 -10 -10 -9 -8 -7 ------- Run | Yrd Mat Min Exi Min Mat Fac Peak Influence 146 | 5 20 107 . 134 146 45 Initial 45 | . 2 6 . . . 45 Average 39 | 2 12 66 . 38 37 45 Maximum Alert Level . | . . . . . . . Low Security (%) 100 | 100 100 100 . 100 100 100 Level 1 . | . . . . . . . Level 2 . | . . . . . . . Level 3 . | . . . . . . . Level 4 . | . . . . . . . Level 5 . | . . . . . . . High Security . | . . . . . . . Max Security . | . . . . . . . Squads Dispatched 1 | . 1 . . . . . Investigation 1 | . 1 . . . . . Extermination . | . . . . . . . Reinforcement . | . . . . . . . Assault . | . . . . . . . Garrison . | . . . . . . . Intercept . | . . . . . . . Searches Triggered . | . . . . . . . Construction Impeded . | . . . . . . . Haulers Reinforced . | . . . . . . . Active Scanning Responses . | . . . . . . . Cargo Convoy Interrupts . | . . . . . . . Stealth | -11 -10 -10 -10 -9 -8 -7 --------- Run | Yrd Mat Min Exi Min Mat Fac Distress Signals 1 | . . . . . 1 . Communications Jammed . | . . . . . . . Distress Signals . | . . . . . . . Times Spotted 29 | . 1 5 . 5 14 4 Peak Tracking Total 4 | . 1 3 . 3 3 4 Tactical Retreats 1 | . . . . 1 . . Traps | -11 -10 -10 -10 -9 -8 -7 ------- Run | Yrd Mat Min Exi Min Mat Fac Traps Triggered . | . . . . . . . Indirectly . | . . . . . . . Trap Hack Attempts . | . . . . . . . Triggered . | . . . . . . . Disarmed . | . . . . . . . Reprogrammed . | . . . . . . . Reused . | . . . . . . . Traps Extracted . | . . . . . . . Installed . | . . . . . . . Triggered . | . . . . . . . Machines | -11 -10 -10 -10 -9 -8 -7 ---------- Run | Yrd Mat Min Exi Min Mat Fac Machines Disabled 1 | . . . . 1 . . Max in Single Turn . | . . . . . . . Machines Repaired . | . . . . . . . Machines Dismantled . | . . . . . . . Machines Sabotaged . | . . . . . . . Overloaded Fab Kills . | . . . . . . . Hacking | -11 -10 -10 -10 -9 -8 -7 --------- Run | Yrd Mat Min Exi Min Mat Fac Machines Accessed 4 | . 2 . 1 . 1 . Terminals 3 | . 2 . . . 1 . Fabricators . | . . . . . . . Repair Stations . | . . . . . . . Recycling Units . | . . . . . . . Scanalyzers . | . . . . . . . Garrison Access . | . . . . . . . Total Hacks 30 | . 5 . 23 . 2 . Successful 28 | . 3 . 23 . 2 . Failed 2 | . 2 . . . . . Catastrophic . | . . . . . . . Database Lockouts . | . . . . . . . Manual . | . . . . . . . Terminals 7 | . 5 . . . 2 . Fabricators . | . . . . . . . Repair Stations . | . . . . . . . Recycling Units . | . . . . . . . Scanalyzers . | . . . . . . . Garrison Access . | . . . . . . . Terminal Hacks 28 | . 3 . 23 . 2 . Record 24 | . . . 23 . 1 . Branch Access Points 1 | . 1 . . . . . Terminal Index 1 | . . . . . 1 . Maintenance Status 1 | . 1 . . . . . Zone Layout 1 | . 1 . . . . . Fabricator Hacks . | . . . . . . . Repair Station Hacks . | . . . . . . . Recycling Unit Hacks . | . . . . . . . Scanalyzer . | . . . . . . . Garrison Access Hacks . | . . . . . . . Unauthorized Hacks . | . . . . . . . Terminals . | . . . . . . . Fabricators . | . . . . . . . Repair Stations . | . . . . . . . Recycling Units . | . . . . . . . Scanalyzers . | . . . . . . . Garrison Access . | . . . . . . . Data Cores Recovered . | . . . . . . . Used . | . . . . . . . Hacking Detections 2 | . 2 . . . . . Full Trace Events 1 | . 1 . . . . . Feedback Events . | . . . . . . . Feedback Blocked . | . . . . . . . Robot Schematics Acquired . | . . . . . . . Robots Built . | . . . . . . . Authchips . | . . . . . . . Time . | . . . . . . . Total Robot Build Rating . | . . . . . . . Part Schematics Acquired . | . . . . . . . Parts Built . | . . . . . . . Authchips . | . . . . . . . Time . | . . . . . . . Total Part Build Rating . | . . . . . . . Parts Repaired . | . . . . . . . Time . | . . . . . . . Parts Recycled . | . . . . . . . Recycled Matter . | . . . . . . . Retrieved Matter . | . . . . . . . Retrieved Components . | . . . . . . . Parts Scanalyzed . | . . . . . . . Part Schematics Acquired . | . . . . . . . Parts Damaged . | . . . . . . . Bothacking | -11 -10 -10 -10 -9 -8 -7 ------------ Run | Yrd Mat Min Exi Min Mat Fac Used RIF Installer . | . . . . . . . Robots Hacked . | . . . . . . . Non-combat . | . . . . . . . Combat . | . . . . . . . Robot Hacks Applied . | . . . . . . . Relay Couplers Released . | . . . . . . . Fabnet Peak Effective % . | . . . . . . . Robots Rewired . | . . . . . . . Allies Hacked . | . . . . . . . Hacks Repelled . | . . . . . . . Allies | -11 -10 -10 -10 -9 -8 -7 -------- Run | Yrd Mat Min Exi Min Mat Fac Total Allies 5 | . . 2 . 3 . . Largest Group 3 | . . 2 1 3 . . Highest-Rated Group 47 | . . 47 31 40 . . Highest-Rated Ally 31 | . . 31 31 16 . . Total Orders . | . . . . . . . Ally Attacks 42 | . . 16 . 26 . . Total Damage 467 | . . 234 . 233 . . Kills 10 | . . 5 . 5 . . Allies Corrupted . | . . . . . . . Allies Melted . | . . . . . . . Intel | -11 -10 -10 -10 -9 -8 -7 ------- Run | Yrd Mat Min Exi Min Mat Fac Robot Analysis Total . | . . . . . . . Derelict Logs Recovered 1 | . . . . 1 . . Drone Launches . | . . . . . . . Drone Recoveries . | . . . . . . . Exploration | -11 -10 -10 -10 -9 -8 -7 ------------- Run | Yrd Mat Min Exi Min Mat Fac Turns Passed 3600 | 72 119 285 1231 1044 778 71 Spaces Moved 1634 | 43 88 204 560 378 324 37 Core 7 | 7 . . . . . . Treads . | . . . . . . . Legs 1627 | 36 88 204 560 378 324 37 Wheels . | . . . . . . . Hover . | . . . . . . . Flight . | . . . . . . . Fastest Speed 50 | 50 120 120 120 260 186 187 Average Speed 201 | 117 120 120 219 260 189 187 Slowest Speed 260 | 150 120 120 260 260 190 187 Overloaded Moves . | . . . . . . . Propulsion Burnouts . | . . . . . . . Robots Hopped . | . . . . . . . Cave-ins Triggered . | . . . . . . . Exploration Rate (%) 36 | 3 18 41 82 86 24 1 Regions Visited 6 Branch Regions 3 Pre-discovered Areas 1 | . . . 1 . . . Known Exits Taken 1 | . 1 . . . . . Unknown Exits Taken 5 | 1 . 1 1 1 1 . Scrap Searched 2 | . . 1 . 1 . . Spaces Dug . | . . . . . . . Terrain Destroyed . | . . . . . . . Melee . | . . . . . . . Projectile . | . . . . . . . AOE . | . . . . . . . Terrain Rammed . | . . . . . . . Walls Destroyed . | . . . . . . . Machines Disabled . | . . . . . . . Actions | -11 -10 -10 -10 -9 -8 -7 --------- Run | Yrd Mat Min Exi Min Mat Fac Total 1804 | 58 95 228 564 409 412 38 Wait 22 | . . 8 . 13 1 . Move 1628 | 42 87 203 559 377 323 37 Hop . | . . . . . . . Pick Up 44 | 7 4 5 3 2 23 . Fast Attach . | . . . . . . . Attach 15 | 6 1 . . . 7 1 Detach . | . . . . . . . Swap 12 | . . 2 1 . 9 . Drop 14 | . . 2 1 1 10 . Fire 69 | 3 3 8 . 16 39 . Melee . | . . . . . . . Ram . | . . . . . . . Kick . | . . . . . . . Crush . | . . . . . . . Escape Stasis . | . . . . . . . Rewire . | . . . . . . . Trap . | . . . . . . . Miscellaneous . | . . . . . . . Route ------- -11/Scrapyard -10/Materials (discovered 2 exits: [Mat] / *Min) -10/Mines -10/Exiles (discovered 2 exits: [*Min x2]) -9/Mines -8/Materials -7/Factory History --------- Turn | Location | Event 19 | -11/Scrapyard | Discovered new exit (range 16) 73 | -11/Scrapyard | Entered Materials 103 | -10/Materials | Identified exit to Mines 174 | -10/Materials | Discovered new exit (range 13) 192 | -10/Materials | Entered Mines 193 | -10/Mines | Assembled infested the area 317 | -10/Mines | Build established: Mutant 461 | -10/Mines | Deemed a non-threat by the Exiles lab entrance 462 | -10/Mines | Discovered new exit (range 5) 477 | -10/Mines | Entered Exiles 477 | -10/Exiles | Accompanied by 1 ally 505 | -10/Exiles | Discovered new exit (range 17) 507 | -10/Exiles | Led the pair of lost Derelicts to a safe place 527 | -10/Exiles | Met 8R-AWN 552 | -10/Exiles | Met EX-HEX 606 | -10/Exiles | Met EX-DEC 623 | -10/Exiles | Learned location of Zion (-7) 765 | -10/Exiles | Discovered new exit (range 14) 1016 | -10/Exiles | Visited The Gauntlet 1708 | -10/Exiles | Entered Mines 1872 | -9/Mines | Found a hidden stash of uninstalled traps 1968 | -9/Mines | Assisted by bots powering up and referring to "LRC-V3" 2361 | -9/Mines | Learned Materials interactive machine intel 2390 | -9/Mines | Found a damaged Exp. Sensor Array with a note attached 2395 | -9/Mines | Found Prototype Device 2661 | -9/Mines | Discovered new exit (range 3) 2752 | -9/Mines | Entered Materials 2752 | -8/Materials | Evolved 4 slots: Propulsion x2, Utility x2 2753 | -8/Materials | Loaded intel: 19 interactive machine locations 2755 | -8/Materials | Identified Exp. Sensor Array 3062 | -8/Materials | Build established: Scavenger-Mutant 3486 | -8/Materials | Discovered new exit (range 16) 3530 | -8/Materials | Entered Factory 3530 | -7/Factory | Evolved 2 slots: Power x1, Utility x1 3601 | -7/Factory | Self-destructed Last Messages --------------- K-01 Serf collects debris. R-06 Scavenger collects Lgt. Ion Engine. K-01 Serf collects debris. S-10 Pest destroyed. Acquired 10 matter. R-06 Scavenger collects Med. Laser. U-05 Engineer builds a Door. R-06 Scavenger collects Flight Unit. R-06 Scavenger collects Lgt. Assault Rifle. K-01 Serf collects debris. EXIT=FOUND Imp. Signal Interpreter melted. Imp. Sensor Array melted. W-25 Informer destroyed. K-01 Serf collects debris. K-01 Serf cleans the Electrolysis Chamber. PARAMETERS=POWER+1,UTILITY+1 LOCATION=UNKNOWN GOAL=ESCAPE ALERT: All DSF locations entering lockdown mode. Map ----- +----------------------------------------------------+ | ??????????????????????????????????????????? | | ??????????????????????????????????????????? | | ??????????????????????????????????????????? | | ??????????????????????????????????????????? | | ??????????????????????????????????????????? | | ??????????????????????????????????????????? | | ??????????????????????????????????????????? | | ??????????????????????????????????????????? | | ??????????????????????????????????????????? | | ??????????????????????????????????????????? | | ??????????????????????????????????????????? | | ??????????????????????????????????????????? | | ??????????????????????????????????????????? | | ????????????????????????????????? ??????? | | ????????????????????????????????? #?????? | | ????????????????????????????????? #?????? | | ????????????????????????????????? #?????? | | ????????????????????????????????? #?????? | | ??????????????????????########### #?????? | | ??????#######+######### # #?????? | | ????? ? # # ##+#??? | | ????? # """"" + #??? | | ???? # """"" # #??? | | ???? + """ g # #??? | | ???? # # ###? | | ?????????####+### # @ g# #? | | ????????????????# # l g # #? | | ????????????????###############+# #? | | ??????????????????????????????# #? | | ??????????????????????????????# #? | | ??????????????????????????????# ######+##?? | | ??????????????????????????????# #?????????? | | ?????????????????????????????? ?????????? | | ?????????????????????????????# ?????????? | | ?????????????????????????????# #????????? | | ?????????????????????????????## ##????????? | | ??????????????????????????????# #?????????? | | ??????????????????????????????# #?????????? | | ?????????????????????????????? ?????????? | | ?????????????????????????????? ?????????? | | ?????????????????????????????? ?????????? | | ??????????????????????????????###?????????? | | ??????????????????????????????????????????? | | ??????????????????????????????????????????? | | ??????????????????????????????????????????? | | ??????????????????????????????????????????? | | ??????????????????????????????????????????? | | ??????????????????????????????????????????? | | ??????????????????????????????????????????? | | | +----------------------------------------------------+ Best States ------------- Heat Dissipation 63 Energy Generation 14 Energy Capacity 410 Matter Stores 300 Matter Capacity 300 Sight Range 18 Robot Scan Range 20 Terrain Scan Density 10 Resistance: KI 20 Resistance: TH 20 Resistance: EX 20 Resistance: EM 20 Resistance: I 20 Resistance: S 20 Resistance: P 20 Evasion (%) 55 Offensive Hacking 10 Item Schematics ----------------- None Robot Schematics ------------------ None Fabricated ------------ Nothing Alien Tech Used ----------------- None Achievements -------------- None Challenges ------------ None Game ------ Seed BombCoolantBattery Manual? 0 Play Time 00:21:08 Cumulative 29.0 hours Start 2024.03.31 @ 12:57:59 End 2024.03.31 @ 13:20:19 Sessions 1 Manual Loads 0 Difficulty Adventurer Special Mode None Game No. 42 Rogue 0 Adventurer 42 Explorer 0 Win Type - Total 0 Types 0/0/0/0/0/0/0/0/0 Lore% 24 Gallery% 26 Achievement% 22 Wizard Run 0 Options --------- Layout 1 ASCII 0 Keyboard 0 Movement Arrows Keybinds 0 Fullscreen 1 Font 32/SmallcapsGlow Map View 50x40 Zoom Use 0% Tactical HUD 0 Map Filters NONE Filters NONE Steam 1 RUN: d1fd5b46-9a76-4417-a8bb-d2865a025885